bitfinex/quotes_SOLUSD_20220226
["timestamp","ask_amount","ask_price","bid_price","bid_amount"]
[1645849220684,1.87141456,92.68,92.582,0.25]
[1645849220863,26.29922603,92.68,92.582,0.25]
[1645849221064,1.73927819,92.679,92.577,0.25]
[1645849221264,26.16708966,92.679,92.577,0.25]
[1645849221463,1.49989964,92.678,92.59,123.7944]
[1645849221666,25.42771111,92.678,92.591,0.25]
[1645849222064,24.42781147,92.677,92.591,0.25]
[1645849222267,1.47179726,92.676,92.591,0.25]
[1645849222465,25.89960873,92.676,92.59,16.1944]
[1645849222667,66.20717146,92.675,92.59,16.1944]
[1645849222868,1.85943988,92.674,92.59,16.1944]
[1645849223166,4.09832754,92.674,92.59,16.1944]
[1645849223367,1.50913689,92.672,92.59,16.1944]
[1645849223867,87.2471,92.675,92.59,16.1944]
[1645849223868,60.48453199,92.67,92.59,16.1944]
[1645849224069,1.73320551,92.669,92.59,16.1944]
[1645849224470,24.42781147,92.668,92.59,16.1944]
[1645849224873,25.84862079,92.667,92.59,16.1944]
[1645849225070,1.47921491,92.666,92.59,16.1944]
[1645849227279,1.47921491,92.666,92.59,123.7944]
[1645849228299,58.95073089,92.67,92.59,123.7944]
[1645849230006,58.95073089,92.67,92.59,139.3044]
[1645849230204,58.95073089,92.67,92.591,3.37300896]
[1645849230406,58.95073089,92.67,92.61,123.7917]
[1645849231406,58.95073089,92.67,92.61,16.1917]
[1645849232207,22.6271,92.675,92.61,16.1917]
[1645849232507,1.75424038,92.71,92.611,107.6]
[1645849232705,47.363,92.705,92.611,110.46292427]
[1645849232905,69.4950228,92.705,92.62,123.7891]
[1645849233104,69.4950228,92.705,92.62,16.1891]
[1645849233304,70.66284183,92.704,92.62,16.1891]
[1645849233504,70.16284183,92.704,92.62,16.1891]
[1645849233711,22.1320228,92.703,92.621,0.6397733]
[1645849234507,22.1320228,92.703,92.621,3.75269757]
[1645849235307,22.1320228,92.703,92.631,107.6]
[1645849235715,48.03081903,92.704,92.632,2.86292427]
[1645849236614,48.03081903,92.704,92.63,16.1878]
[1645849237719,1.83851821,92.703,92.63,16.1878]
[1645849238120,1.83851821,92.703,92.63,123.7878]
[1645849238519,1.83851821,92.703,92.63,16.1878]
[1645849239723,1.83851821,92.703,92.63,19.05072427]
[1645849240125,1.83851821,92.703,92.631,0.25]
[1645849240522,1.83851821,92.703,92.631,3.11292427]
[1645849240724,1.83851821,92.703,92.631,2.86292427]
[1645849240924,1.83851821,92.703,92.63,16.1878]
[1645849246957,1.83851821,92.703,92.631,0.25]
[1645849247135,1.83851821,92.703,92.63,16.1878]
[1645849248734,1.83851821,92.703,92.617,2.86292427]
[1645849248934,1.83851821,92.703,92.602,2.86292427]
[1645849249134,64.62,92.701,92.6,16.191]
[1645849249333,64.62,92.699,92.6,16.191]
[1645849249538,1.8555537,92.698,92.6,16.191]
[1645849249740,64.62,92.697,92.6,16.191]
[1645849249941,64.62,92.695,92.596,25.16243608]
[1645849250341,64.62,92.693,92.596,25.16243608]
[1645849250544,64.62,92.691,92.596,25.16243608]
[1645849250743,64.62,92.689,92.596,25.16243608]
[1645849250944,1.55567779,92.688,92.596,25.16243608]
[1645849251442,66.17567779,92.688,92.596,25.16243608]
[1645849251643,1.74817551,92.687,92.596,25.16243608]
[1645849256462,1.5551309,92.684,92.596,25.16243608]
[1645849257466,1.43518056,92.683,92.596,25.16243608]
[1645849257765,1.84486636,92.682,92.596,25.16243608]
[1645849258365,21.06315151,92.681,92.596,25.16243608]
[1645849258565,1.69903196,92.68,92.596,25.16243608]
[1645849259167,21.06315151,92.679,92.596,25.16243608]
[1645849259566,1.37702394,92.678,92.596,25.16243608]
[1645849260166,21.06315151,92.677,92.596,25.16243608]
[1645849260366,64.62,92.674,92.596,25.16243608]
[1645849260568,1.8218833,92.673,92.596,25.16243608]
[1645849262868,53.24122023,92.675,92.596,25.16243608]
[1645849263867,53.24122023,92.675,92.597,107.6]
[1645849264468,53.24122023,92.675,92.596,25.16243608]
[1645849264667,53.24122023,92.675,92.597,107.6]
[1645849267372,53.24122023,92.675,92.597,123.4296]
[1645849269272,23.7467,92.676,92.601,107.6]
[1645849269671,23.7467,92.676,92.602,2.86292427]
[1645849270072,28.24617946,92.704,92.611,107.6]
[1645849270276,50.97162724,92.698,92.621,107.6]
[1645849270471,50.97162724,92.698,92.622,2.73244824]
[1645849270672,50.97162724,92.698,92.623,107.6]
[1645849270871,50.97162724,92.698,92.624,2.53661529]
[1645849271274,50.97162724,92.698,92.625,2.86292427]
[1645849271474,50.97162724,92.698,92.631,107.6]
[1645849271673,24.3905,92.705,92.632,0.25]
[1645849271874,24.3905,92.705,92.632,3.11292427]
[1645849272076,24.3905,92.705,92.633,110.46292427]
[1645849272275,20.28995301,92.704,92.634,0.25]
[1645849272575,20.28995301,92.704,92.641,107.6]
[1645849272775,55.02858818,92.703,92.642,4.69000014]
[1645849273577,20.3170072,92.702,92.642,4.69000014]
[1645849287789,4.316,92.752,92.65,16.1843]
[1645849287790,20.3170072,92.704,92.65,16.1843]
[1645849287988,20.3170072,92.704,92.66,15.51]
[1645849288214,56.08049436,92.731,92.661,130.46418354]
[1645849288588,20.3170072,92.73,92.661,130.46418354]
[1645849288787,20.3170072,92.73,92.661,133.32710781]
[1645849288988,20.3170072,92.729,92.662,2.96509171]
[1645849289387,20.3170072,92.728,92.663,2.86292427]
[1645849289587,20.3170072,92.728,92.671,107.6]
[1645849289791,20.3170072,92.727,92.671,107.6]
[1645849290188,20.3170072,92.726,92.671,107.6]
[1645849290689,20.3170072,92.725,92.671,107.6]
[1645849290892,20.3170072,92.724,92.671,107.6]
[1645849291195,20.3170072,92.724,92.682,4.75051401]
[1645849291393,24.1179,92.734,92.683,107.6]
[1645849291791,20.22227867,92.733,92.683,107.6]
[1645849292395,60.1805555,92.732,92.683,107.6]
[1645849292594,60.1805555,92.732,92.682,4.75051401]
[1645849293196,22.7462,92.756,92.682,4.75051401]
[1645849293400,22.7462,92.756,92.691,107.6]
[1645849293601,23.8692,92.78,92.691,107.6]
[1645849293799,24.2069,92.779,92.691,107.6]
[1645849293998,1.52159484,92.778,92.691,107.6]
[1645849294200,21.72108954,92.778,92.691,110.46292427]
[1645849294400,1.6894332,92.776,92.691,110.46292427]
[1645849294700,1.6894332,92.776,92.701,22.86418354]
[1645849295102,20.1994947,92.775,92.701,22.86418354]
[1645849295300,1.84961108,92.774,92.701,22.86418354]
[1645849295719,20.1994947,92.775,92.701,22.86418354]
[1645849295720,20.1994947,92.775,92.702,110.46292427]
[1645849295920,20.1994947,92.773,92.702,116.94292427]
[1645849296119,20.1994947,92.773,92.702,114.08]
[1645849296322,20.1994947,92.772,92.702,114.08]
[1645849296722,57.89463427,92.777,92.702,114.08]
[1645849297122,19.45566662,92.776,92.703,2.86292427]
[1645849297822,1.65227034,92.775,92.701,22.86418354]
[1645849298223,1.65227034,92.775,92.7,31.6852]
[1645849298421,19.45566662,92.774,92.692,23.9448]
[1645849298621,1.39344574,92.773,92.692,23.9448]
[1645849299021,1.39344574,92.773,92.67,31.689]
[1645849299223,1.39344574,92.773,92.68,22.02098355]
[1645849299420,1.39344574,92.773,92.671,23.0597]
[1645849299621,19.43982904,92.772,92.672,4.313]
[1645849299821,1.84101288,92.771,92.672,4.313]
[1645849300322,19.43982904,92.77,92.672,4.313]
[1645849300524,1.59703018,92.769,92.673,24.61505635]
[1645849300922,1.59703018,92.769,92.674,4.314]
[1645849301124,41.98302904,92.768,92.674,4.314]
[1645849301322,1.46300088,92.767,92.674,4.314]
[1645849302323,1.46300088,92.767,92.674,111.914]
[1645849302723,1.46300088,92.767,92.674,4.314]
[1645849303325,1.46300088,92.767,92.675,0.25]
[1645849303523,1.46300088,92.767,92.676,4.314]
[1645849303724,1.46300088,92.767,92.677,0.25]
[1645849303923,1.46300088,92.767,92.678,4.313]
[1645849305324,1.46300088,92.767,92.68,16.1794]
[1645849305525,1.46300088,92.767,92.681,4.313]
[1645849306525,1.46300088,92.767,92.683,107.6]
[1645849307529,1.46300088,92.767,92.683,4.313]
[1645849308126,1.46300088,92.767,92.69,123.7773]
[1645849308328,1.46300088,92.767,92.692,107.6]
[1645849308528,1.46300088,92.767,92.693,4.313]
[1645849309126,22.5432,92.768,92.694,2.86292427]
[1645849309335,22.5432,92.768,92.695,4.313]
[1645849309628,22.5432,92.768,92.701,107.6]
[1645849310430,22.5432,92.768,92.702,4.313]
[1645849311228,22.5432,92.768,92.701,4.313]
[1645849311431,22.5432,92.768,92.71,16.1739]
[1645849311628,1.84154176,92.767,92.711,23.71388279]
[1645849317341,1.84154176,92.767,92.712,107.6]
[1645849317540,1.54683784,92.802,92.72,16.1723]
[1645849317842,24.6353,92.803,92.721,107.6]
[1645849318037,24.6353,92.803,92.721,114.77492427]
[1645849318440,56.00517393,92.797,92.721,110.46292427]
[1645849319040,51.84228263,92.783,92.721,110.46292427]
[1645849319338,24.6353,92.803,92.73,16.1705]
[1645849319940,24.6353,92.803,92.731,107.6]
[1645849320144,24.6353,92.803,92.74,15.51]
[1645849320341,24.6353,92.803,92.742,3.90081476]
[1645849320539,24.6353,92.803,92.743,4.311]
[1645849320742,24.6353,92.803,92.751,107.6]
[1645849320940,24.6353,92.803,92.76,15.51]
[1645849321141,45.06310551,92.809,92.76,15.51]
[1645849321540,45.06310551,92.809,92.751,4.311]
[1645849321743,1.45021657,92.808,92.75,16.1678]
[1645849322442,1.42862368,92.807,92.733,4.311]
[1645849322642,1.42862368,92.807,92.73,16.1708]
[1645849322845,1.42862368,92.807,92.721,4.311]
[1645849323043,1.42862368,92.807,92.714,4.312]
[1645849323443,1.42862368,92.807,92.715,21.45859707]
[1645849323644,1.42862368,92.807,92.716,4.312]
[1645849324645,1.42862368,92.807,92.72,16.1732]
[1645849324844,1.42862368,92.807,92.721,4.39353422]
[1645849326745,66.04862368,92.807,92.72,16.1732]
[1645849326946,64.62,92.805,92.716,4.312]
[1645849327146,64.62,92.803,92.716,4.312]
[1645849327347,1.54140974,92.802,92.716,4.312]
[1645849327646,4.312,92.801,92.716,4.312]
[1645849327948,64.62,92.8,92.717,5.25692891]
[1645849328145,64.62,92.798,92.717,5.25692891]
[1645849328347,64.62,92.796,92.717,5.25692891]
[1645849328645,2.24647809,92.801,92.717,5.25692891]
[1645849328646,64.62,92.794,92.717,5.25692891]
[1645849328846,24.85734453,92.793,92.717,5.25692891]
[1645849329046,1.47160426,92.792,92.717,5.25692891]
[1645849332955,1.47160426,92.792,92.72,16.1723]
[1645849333158,23.4173,92.793,92.721,109.97329911]
[1645849333356,23.4173,92.793,92.721,113.08622338]
[1645849333654,23.4173,92.793,92.722,2.86292427]
[1645849333853,23.4173,92.793,92.723,107.85]
[1645849334055,23.4173,92.793,92.723,157.01454529]
[1645849334253,23.4173,92.793,92.724,2.86292427]
[1645849334456,23.4173,92.793,92.731,107.6]
[1645849334654,23.4173,92.793,92.732,1.14917157]
[1645849334853,23.4173,92.793,92.732,4.01209584]
[1645849335054,23.4173,92.793,92.733,2.86292427]
[1645849335255,23.4173,92.793,92.734,0.25]
[1645849335555,23.4173,92.793,92.74,16.1682]
[1645849344586,23.4173,92.793,92.741,107.6]
[1645849346687,24.8151,92.808,92.751,107.6]
[1645849347687,24.8151,92.808,92.752,4.69868713]
[1645849350489,42.7165314,92.807,92.752,4.69868713]
[1645849352891,24.8151,92.808,92.752,4.69868713]
[1645849353191,24.3342,92.842,92.752,4.69868713]
[1645849353192,24.3342,92.842,92.761,107.6]
[1645849353389,24.3342,92.842,92.753,5.46809752]
[1645849353390,24.3342,92.842,92.771,107.6]
[1645849353590,24.3342,92.842,92.771,112.86]
[1645849353792,47.93843778,92.841,92.772,1.45741335]
[1645849354290,47.93843778,92.841,92.772,4.32033762]
[1645849354490,47.93843778,92.841,92.781,107.6]
[1645849355489,47.93843778,92.841,92.78,31.6721]
[1645849355990,23.1243,92.84,92.78,31.6721]
[1645849358196,23.1243,92.84,92.781,107.6]
[1645849358996,23.1243,92.84,92.79,16.1603]
[1645849360798,23.1243,92.84,92.791,107.6]
[1645849361400,23.1243,92.84,92.792,4.83666944]
[1645849361803,23.1243,92.84,92.79,16.1603]
[1645849369510,23.1243,92.84,92.791,107.6]
[1645849370910,24.4764,92.857,92.8,16.1584]
[1645849371113,1.44419414,92.88,92.801,107.6]
[1645849371314,23.9213,92.896,92.801,107.6]
[1645849371315,1.47300332,92.895,92.803,107.6]
[1645849371512,1.47300332,92.895,92.804,4.558]
[1645849371711,48.1318,92.896,92.804,4.558]
[1645849371915,51.64293872,92.895,92.805,108.20868628]
[1645849372111,51.64293872,92.895,92.821,107.6]
[1645849372311,51.64293872,92.895,92.841,107.6]
[1645849372510,48.1318,92.896,92.841,114.57]
[1645849373312,48.1318,92.896,92.85,16.1497]
[1645849373514,1.6412121,92.922,92.851,107.6]
[1645849373714,1.73582103,92.93,92.851,107.6]
[1645849374616,46.33295032,92.929,92.851,107.6]
[1645849374817,1.85603695,92.928,92.851,107.6]
[1645849376424,46.9127,92.931,92.86,16.1477]
[1645849376625,46.9127,92.931,92.861,107.6]
[1645849376823,46.9127,92.931,92.871,107.6]
[1645849377029,46.9127,92.931,92.871,113.87]
[1645849377227,1.82077788,92.963,92.872,4.305]
[1645849377424,57.62880195,92.962,92.873,135.87882313]
[1645849377624,57.62880195,92.962,92.874,4.304]
[1645849377825,57.62880195,92.962,92.875,107.6]
[1645849378024,57.62880195,92.962,92.891,107.6]
[1645849378261,1.59138778,92.967,92.892,1.61117735]
[1645849379462,44.90279491,92.966,92.892,1.61117735]
[1645849380062,1.3766821,92.965,92.89,31.6526]
[1645849380265,1.3766821,92.965,92.891,4.304]
[1645849380462,3.63113642,92.965,92.871,4.304]
[1645849380665,1.3766821,92.965,92.892,2.86292427]
[1645849380868,1.3766821,92.965,92.9,15.51]
[1645849381062,1.75384829,92.989,92.901,107.6]
[1645849381265,1.75384829,92.989,92.902,4.303]
[1645849381963,50.35450028,92.988,92.904,107.6]
[1645849382265,50.35450028,92.988,92.905,4.303]
[1645849382266,1.72936316,92.987,92.905,4.303]
[1645849382462,1.72936316,92.987,92.91,31.6489]
[1645849382866,1.72936316,92.987,92.911,107.6]
[1645849383063,1.72936316,92.987,92.912,4.303]
[1645849383263,1.39972197,92.992,92.912,4.303]
[1645849383864,56.28946712,92.991,92.912,4.303]
[1645849384064,56.28946712,92.991,92.911,107.6]
[1645849384264,1.54559924,92.99,92.911,107.6]
[1645849386269,1.54559924,92.99,92.912,4.303]
[1645849389073,1.54559924,92.99,92.911,107.6]
[1645849389674,1.54559924,92.99,92.912,4.303]
[1645849390073,1.54559924,92.99,92.91,31.6489]
[1645849392676,1.54559924,92.99,92.911,107.6]
[1645849392877,1.54559924,92.99,92.91,31.6489]
[1645849393177,1.54559924,92.99,92.911,107.6]
[1645849394078,1.54559924,92.99,92.91,31.6489]
[1645849394477,1.54559924,92.99,92.903,5.49187098]
[1645849395081,4.303,92.989,92.903,5.49187098]
[1645849395479,6.55745432,92.989,92.903,5.49187098]
[1645849396882,2.25445432,92.989,92.903,5.49187098]
[1645849397382,5.84859924,92.99,92.903,5.49187098]
[1645849397586,5.84859924,92.99,92.891,24.70575749]
[1645849398384,2.25445432,92.989,92.877,24.70575749]
[1645849398584,4.303,92.988,92.886,5.95941406]
[1645849398782,5.90405142,92.988,92.886,5.95941406]
[1645849398983,2.25445432,92.987,92.886,5.95941406]
[1645849399184,4.304,92.986,92.886,5.95941406]
[1645849400582,4.304,92.986,92.886,30.66517155]
[1645849403685,4.304,92.986,92.887,107.6]
[1645849404087,1.51973514,92.987,92.888,24.70575749]
[1645849404505,1.51973514,92.987,92.89,15.51]
[1645849404907,1.51973514,92.987,92.891,24.70575749]
[1645849406108,1.51973514,92.987,92.891,47.44845749]
[1645849406308,1.51973514,92.987,92.892,107.6]
[1645849406808,1.51973514,92.987,92.892,132.30575749]
[1645849407008,1.51973514,92.987,92.894,107.6]
[1645849407408,1.51973514,92.987,92.901,107.6]
[1645849407608,1.51973514,92.987,92.902,0.25]
[1645849407808,1.51973514,92.987,92.903,107.6]
[1645849408009,1.51973514,92.987,92.904,0.25]
[1645849408408,1.51973514,92.987,92.905,107.6]
[1645849408609,1.51973514,92.987,92.911,107.6]
[1645849409309,56.28946712,92.991,92.913,107.6]
[1645849409509,56.28946712,92.991,92.914,2.94223392]
[1645849409710,56.28946712,92.991,92.915,107.6]
[1645849409911,56.28946712,92.991,92.921,107.6]
[1645849410410,56.28946712,92.991,92.92,15.51]
[1645849410612,56.28946712,92.991,92.92,31.6466]
[1645849410809,56.28946712,92.991,92.922,2.86292427]
[1645849416715,24.5315,92.994,92.922,2.86292427]
[1645849417717,47.85183872,92.992,92.922,2.86292427]
[1645849417917,47.85183872,92.992,92.923,4.303]
[1645849420626,1.39581933,92.991,92.92,31.6466]
[1645849420821,1.39581933,92.991,92.92,15.51]
[1645849422022,47.85183872,92.992,92.92,15.51]
[1645849422421,1.8539624,92.991,92.903,23.5684]
[1645849422621,1.48766385,92.991,92.903,23.5684]
[1645849422823,5.79066385,92.991,92.903,23.5684]
[1645849423225,5.79066385,92.991,92.904,26.43909082]
[1645849423424,1.48766385,92.991,92.91,16.1386]
[1645849423624,47.85183872,92.992,92.911,111.903]
[1645849423823,47.85183872,92.992,92.911,136.90201509]
[1645849424024,47.85183872,92.992,92.913,107.6]
[1645849424222,47.85183872,92.992,92.914,4.303]
[1645849424423,47.85183872,92.992,92.915,107.6]
[1645849424622,47.85183872,92.992,92.916,4.303]
[1645849425026,47.85183872,92.992,92.917,107.6]
[1645849425524,47.85183872,92.992,92.921,107.6]
[1645849425725,24.5315,92.994,92.92,16.1369]
[1645849425928,24.5315,92.994,92.922,5.98715717]
[1645849426124,24.5315,92.994,92.923,4.553]
[1645849426325,24.5315,92.994,92.923,7.41592427]
[1645849426626,24.5315,92.994,92.925,2.44945999]
[1645849426828,24.5315,92.994,92.927,107.6]
[1645849427025,24.5315,92.994,92.941,107.6]
[1645849427223,24.5315,92.994,92.951,107.6]
[1645849428325,6.06923396,93.047,92.951,107.6]
[1645849428524,45.32176868,93.046,92.953,107.6]
[1645849428724,5.87853826,93.045,92.953,107.6]
[1645849428923,5.87853826,93.045,92.954,2.86292427]
[1645849429125,47.8141,93.044,92.954,2.86292427]
[1645849429324,1.83220267,93.043,92.954,2.86292427]
[1645849429725,1.83220267,93.043,92.961,107.6]
[1645849429925,1.83220267,93.043,92.962,4.3]
[1645849430125,47.8141,93.044,92.962,4.3]
[1645849430827,57.17101268,93.043,92.962,4.3]
[1645849431627,57.17101268,93.043,92.97,16.1279]
[1645849433931,57.17101268,93.043,92.971,4.3]
[1645849434330,47.8141,93.044,92.971,4.3]
[1645849434930,47.8141,93.044,92.97,31.6379]
[1645849435534,52.0385347,93.043,92.97,31.6379]
[1645849436133,47.8141,93.044,92.97,31.6379]
[1645849439835,47.8141,93.044,92.971,107.6]
[1645849440740,47.8141,93.044,92.981,107.6]
[1645849440937,47.8141,93.044,92.981,114.89]
[1645849441139,47.8141,93.044,92.982,2.86292427]
[1645849442438,0.43022636,93.067,92.991,107.6]
[1645849443746,0.43022636,93.067,92.99,31.6338]
[1645849448769,0.43022636,93.067,92.99,58.07289082]
[1645849449772,0.43022636,93.067,92.975,26.43909082]
[1645849449773,2.24715114,93.066,92.975,26.43909082]
[1645849449972,107.6,93.064,92.975,26.43909082]
[1645849450171,1.38119081,93.063,92.897,47.2316]
[1645849450373,54.94084601,93.049,92.9,15.51]
[1645849450572,1.86377408,93.047,92.9,15.51]
[1645849450773,6.08038308,93.046,92.9,15.51]
[1645849450972,16.1387,93.03,92.9,15.51]
[1645849451175,57.03027848,93.028,92.9,15.51]
[1645849451374,5.77839379,93.027,92.9,15.51]
[1645849451577,40.9379777,93.027,92.9,15.51]
[1645849451774,45.15492332,93.026,92.9,15.51]
[1645849451973,5.84243527,93.025,92.901,107.6]
[1645849452173,1.70665075,93.019,92.9,15.51]
[1645849452373,1.63038669,93.017,92.9,15.51]
[1645849452573,4.301,93.016,92.9,15.51]
[1645849452773,27.67566941,93.016,92.9,15.51]
[1645849452972,20.52841962,93.015,92.9,15.51]
[1645849453173,59.10643629,93.013,92.9,15.51]
[1645849453374,1.59090178,93.009,92.9,15.51]
[1645849453575,4.303,93.008,92.886,113.55941406]
[1645849453775,4.303,93.008,92.886,5.95941406]
[1645849454073,48.17777518,93.007,92.886,5.95941406]
[1645849454275,6.12627535,93.006,92.886,5.95941406]
[1645849454474,107.6,92.999,92.886,5.95941406]
[1645849454675,15.51,92.99,92.886,5.95941406]
[1645849454874,30.46511833,92.989,92.886,5.95941406]
[1645849455075,1.72809692,92.988,92.851,15.896]
[1645849455277,4.304,92.987,92.851,15.896]
[1645849455575,1.62778464,92.979,92.851,15.896]
[1645849455774,1.62778464,92.979,92.85,31.6574]
[1645849455976,130.45708732,92.978,92.851,4.70094552]
[1645849456274,20.89167444,92.977,92.851,4.70094552]
[1645849456475,1.72751977,92.976,92.851,112.30094552]
[1645849456675,1.497484,92.975,92.851,112.30094552]
[1645849456877,20.57062928,92.975,92.851,112.30094552]
[1645849457075,20.55331342,92.974,92.851,112.30094552]
[1645849457275,1.85620429,92.973,92.851,112.30094552]
[1645849457574,16.1491,92.97,92.851,4.70094552]
[1645849457776,5.69557244,92.969,92.851,4.70094552]
[1645849457977,30.86050151,92.969,92.851,4.70094552]
[1645849458176,1.60496505,92.968,92.851,4.70094552]
[1645849458376,4.305,92.967,92.851,4.70094552]
[1645849458577,1.60496505,92.968,92.851,4.70094552]
[1645849458777,4.305,92.967,92.851,4.70094552]
[1645849459481,2.24696622,92.966,92.851,4.70094552]
[1645849459678,25.61417256,92.966,92.851,4.70094552]
[1645849459882,1.35198358,92.965,92.851,4.70094552]
[1645849460078,58.90526731,92.964,92.851,4.70094552]
[1645849460379,16.1512,92.96,92.851,4.70094552]
[1645849460578,5.85336568,92.959,92.851,4.70094552]
[1645849460979,1.48441765,92.957,92.851,4.70094552]
[1645849461180,4.305,92.956,92.851,4.70094552]
[1645849461380,25.45177817,92.956,92.851,4.70094552]
[1645849461578,16.1526,92.95,92.851,4.70094552]
[1645849461778,51.27825407,92.949,92.851,4.70094552]
[1645849461981,1.57964996,92.948,92.851,4.70094552]
[1645849462180,4.305,92.947,92.851,4.70094552]
[1645849462380,132.40799351,92.947,92.83,16.1522]
[1645849462579,107.6,92.939,92.81,31.6663]
[1645849462781,15.51,92.93,92.81,16.1563]
[1645849462981,25.22464401,92.929,92.81,16.1563]
[1645849463180,6.04564895,92.928,92.81,16.1563]
[1645849463383,1.73864895,92.928,92.821,4.79]
[1645849463582,1.73651579,92.951,92.85,16.1487]
[1645849463779,23.36,92.957,92.861,107.6]
[1645849463981,1.36518603,92.956,92.862,0.25]
[1645849464382,1.36518603,92.956,92.863,107.6]
[1645849464584,1.36518603,92.956,92.864,0.25]
[1645849464984,1.36518603,92.956,92.865,107.6]
[1645849465284,23.36,92.957,92.866,0.25]
[1645849465484,23.36,92.957,92.881,107.6]
[1645849465684,23.36,92.957,92.881,115.39]
[1645849466284,23.36,92.957,92.881,137.05929123]
[1645849466887,23.36,92.957,92.881,115.39]
[1645849467686,23.36,92.957,92.891,107.6]
[1645849467887,23.36,92.957,92.89,15.51]
[1645849469590,23.36,92.957,92.9,16.1415]
[1645849472195,24.0509,92.989,92.901,107.6]
[1645849472395,48.2785,92.988,92.901,107.6]
[1645849472591,48.2785,92.988,92.91,16.1391]
[1645849472792,1.80748114,92.987,92.91,16.1391]
[1645849473192,45.74584882,92.986,92.91,16.1391]
[1645849473691,1.35545486,92.985,92.91,16.1391]
[1645849474694,45.74584882,92.986,92.91,31.6491]
[1645849474893,45.74584882,92.986,92.911,107.6]
[1645849475095,45.74584882,92.986,92.92,16.1378]
[1645849478794,45.74584882,92.986,92.892,23.8767]
[1645849478795,1.35803416,92.985,92.9,16.1414]
[1645849478996,1.35803416,92.985,92.9,31.6514]
[1645849479697,1.35803416,92.985,92.9,16.1414]
[1645849482705,1.35803416,92.985,92.881,24.1105]
[1645849483107,4.304,92.984,92.881,24.1105]
[1645849485412,4.304,92.984,92.88,31.6549]
[1645849485609,24.06105876,92.983,92.88,31.6549]
[1645849485812,4.304,92.982,92.86,16.1484]
[1645849486010,5.68757384,92.982,92.86,16.1484]
[1645849486210,15.51,92.98,92.86,16.1484]
[1645849486411,6.16049794,92.979,92.86,16.1484]
[1645849486612,28.36505876,92.979,92.86,16.1484]
[1645849486811,1.42631734,92.978,92.86,16.1484]
[1645849487023,4.304,92.977,92.86,16.1484]
[1645849487223,22.8065,92.976,92.86,16.1484]
[1645849487425,1.81718808,92.975,92.86,16.1484]
[1645849487825,2.24696665,92.974,92.86,16.1484]
[1645849488225,2.24696665,92.974,92.861,134.20069235]
[1645849488426,1.81718808,92.975,92.87,16.1468]
[1645849489128,22.8065,92.976,92.872,2.9526022]
[1645849489325,22.8065,92.976,92.873,0.25]
[1645849489526,22.8065,92.976,92.874,107.6]
[1645849489725,22.8065,92.976,92.875,2.97657845]
[1645849489926,22.8065,92.976,92.89,15.51]
[1645849490629,22.8065,92.976,92.9,16.1417]
[1645849492133,1.53477502,92.975,92.87,31.6549]
[1645849492329,4.304,92.974,92.87,16.1449]
[1645849492530,31.09754388,92.974,92.87,16.1449]
[1645849492730,3.77889377,92.973,92.87,16.1449]
[1645849492932,4.304,92.972,92.87,16.1449]
[1645849493137,32.58134454,92.972,92.87,16.1449]
[1645849493432,1.57933586,92.969,92.85,16.1497]
[1645849493739,4.305,92.968,92.85,16.1497]
[1645849493933,6.56759377,92.968,92.85,16.1497]
[1645849494231,2.26259377,92.967,92.85,16.1497]
[1645849494530,4.305,92.966,92.85,16.1497]
[1645849494933,2.26259377,92.965,92.85,16.1497]
[1645849495133,4.305,92.964,92.85,40.92079123]
[1645849495339,23.4542,92.963,92.85,40.92079123]
[1645849495635,5.84124712,92.962,92.85,40.92079123]
[1645849495833,8.10384089,92.962,92.85,40.92079123]
[1645849496032,2.26259377,92.961,92.85,40.92079123]
[1645849496234,4.305,92.96,92.85,40.92079123]
[1645849496633,2.26259377,92.959,92.85,40.92079123]
[1645849496833,50.93058867,92.957,92.85,40.92079123]
[1645849497033,5.80388458,92.956,92.85,40.92079123]
[1645849497234,23.2053,92.955,92.86,16.1482]
[1645849497834,1.53275313,92.954,92.86,16.1482]